fUSD/lending_fUSD_20240405
["ID","MTS","AMOUNT","RATE_DAILY","PERIOD"]
[321514120,1712277040969,-1000.0,0.0004082,18]
[321514121,1712277040979,-150.0,0.00040821,2]
[321514122,1712277040988,-269.29433634,0.00040835,2]
[321514123,1712277040997,-1000.0,0.0004084,18]
[321514124,1712277041007,-1000.0,0.0004086,18]
[321514125,1712277041016,-150.0,0.0004087,2]
[321514126,1712277041026,-2322.45030325,0.00040875,2]
[321514127,1712277041037,-1000.0,0.0004088,18]
[321514128,1712277041050,-570.0,0.00040889,5]
[321514129,1712277041059,-1000.0,0.00040899,2]
[321514130,1712277041069,-186.66735105,0.00040899,15]
[321514131,1712277041080,-5005.2483,0.000409,10]
[321514132,1712277041093,-4877.1473,0.000409,2]
[321514133,1712277041103,-754.2245,0.000409,2]
[321514134,1712277041113,-48544.3204,0.000409,2]
[321514135,1712277041125,-990.9916,0.000409,2]
[321514136,1712277041136,-1440.5879,0.000409,2]
[321514137,1712277041149,-2914.6766,0.000409,2]
[321514138,1712277041161,-500.0,0.000409,2]
[321514139,1712277041172,-161.52447112,0.000409,15]
[321514140,1712277041183,-231.57866,0.000409,6]
[321514141,1712277041194,-150.0,0.000409,6]
[321514142,1712277041203,-1000.0,0.000409,18]
[321514143,1712277041213,-7500.0,0.000409,2]
[321514144,1712277041222,-157.15500887,0.000409,2]
[321514145,1712277041232,-151.040509,0.00040905,30]
[321514146,1712277041242,-151.040509,0.00040905,29]
[321514147,1712277041253,-150.0,0.00040905,2]
[321514148,1712277041263,-1000.0,0.0004092,18]
[321514149,1712277041273,-394.73,0.00040924,2]
[321514150,1712277041283,-417.08,0.00040924,2]
[321514151,1712277041295,-519.43,0.00040924,2]
[321514152,1712277041304,-150.0,0.00040924,2]
[321514153,1712277041314,-304.07,0.00040924,2]
[321514154,1712277041324,-150.0,0.00040924,2]
[321514155,1712277041335,-323.9,0.00040924,2]
[321514156,1712277041345,-348.62,0.00040924,2]
[321514157,1712277041355,-306.97,0.00040924,2]
[321514158,1712277041365,-519.43,0.00040924,2]
[321514159,1712277041375,-150.0,0.00040924,2]
[321514160,1712277041385,-417.08,0.00040924,2]
[321514161,1712277041395,-150.0,0.00040924,2]
[321514162,1712277041405,-348.62,0.00040924,2]
[321514163,1712277041415,-150.0,0.00040924,2]
[321514164,1712277041425,-417.08,0.00040924,2]
[321514165,1712277041435,-519.43,0.00040924,2]
[321514166,1712277041445,-150.0,0.00040924,2]
[321514167,1712277041456,-338.1,0.00040924,2]
[321514168,1712277041465,-519.43,0.00040924,2]
[321514169,1712277041475,-417.08,0.00040924,2]
[321514170,1712277041486,-1000.0,0.0004094,18]
[321514171,1712277041496,-1175.393457,0.0004094,18]
[321514172,1712277041506,-152.0,0.00040942,12]
[321514173,1712277041518,-1000.0,0.0004096,18]
[321514174,1712277041530,-1000.0,0.0004096,18]
[321514175,1712277041543,-500.0,0.0004097,3]
[321514176,1712277041554,-500.0,0.0004097,3]
[321514177,1712277041564,-500.0,0.0004097,3]
[321514178,1712277041576,-500.0,0.0004097,3]
[321514179,1712277041588,-1000.0,0.0004098,18]
[321514180,1712277041599,-1000.0,0.0004098,18]
[321514181,1712277041611,-2734.1105902,0.00040997,2]
[321514182,1712277041622,-20331.5865618,0.00040997,2]
[321514183,1712277041632,-5048.7339896,0.00040997,2]
[321514184,1712277041641,-455397.00087466,0.00040997,3]
[321514185,1712277042227,-2603.10643675,0.00040997,3]
[321514192,1712277044623,-1.373e-05,0.00038444,2]
[321514193,1712277044648,-292.99998627,0.00038444,2]
[321514194,1712277044658,-2938.42782634,0.00040997,3]
[321514195,1712277044687,-388.947786,0.00040997,3]
[321514196,1712277044742,-754748.87038427,0.00040997,3]
[321514197,1712277046174,-61.27387664,0.00040997,3]
[321514198,1712277046214,-26913.6375,0.00040997,3]
[321514199,1712277048320,-153.21,0.000408,4]
[321514200,1712277048329,-153.21,0.000408,4]
[321514201,1712277048338,-3371.46423994,0.00040997,3]
[321514202,1712277049200,1016.77058854,0.00022318,10]
[321514203,1712277120094,16573.8037,0.00022923,2]
[321514206,1712277168946,691.6802,0.00022917,2]
[321514207,1712277985627,4666.67592701,0.00022953,2]
[321514208,1712278035389,769.190628,0.00022936,2]
[321514209,1712278090022,3616.37879315,0.00022953,2]
[321514210,1712278152192,162.05334946,0.00022952,2]
[321514217,1712278231686,-342.22701228,0.00023049,2]
[321514218,1712278231695,-994.0,0.0002305,2]
[321514219,1712278231704,-994.0,0.0002305,2]
[321514220,1712278231714,-994.0,0.0002305,2]
[321514221,1712278231723,-539.38501491,0.0002305,2]
[321514222,1712278231745,-250.0,0.0002305,2]
[321514223,1712278231805,-204.61498509,0.0002305,2]
[321514224,1712278231815,-216.40937932,0.0002305,2]
[321514225,1712278231827,-777.59062068,0.0002305,2]
[321514226,1712278231837,-521.83022382,0.0002305,2]
[321514227,1712278231868,-287.92281775,0.0002305,2]
[321514228,1712278231989,-273.67351421,0.0002305,2]
[321514229,1712278231999,-1530.68341692,0.00023051,2]
[321514248,1712278237829,-289.84347261,0.00023051,2]
[321514249,1712278237890,-12471.46764377,0.00023051,2]
[321514250,1712278237900,-350.0,0.00023051,2]
[321514251,1712278237910,-150.0,0.00023051,2]
[321514252,1712278237920,-883.68141318,0.00023052,2]
[321514253,1712278237929,-357.2397,0.00024672,2]
[321514254,1712278237939,-282.8206,0.00024773,2]
[321514255,1712278237948,-210.0,0.00025356,2]
[321514256,1712278237958,-499.99,0.00025356,2]
[321514257,1712278237967,-150.99,0.00027397,2]
[321514258,1712278237977,-210.0,0.00027891,2]
[321514259,1712278237986,-938.0,0.000293,2]
[321514260,1712278237995,-173.03,0.00029603,2]
[321514261,1712278238005,-3206.28076084,0.00031916,2]
[321514262,1712278238015,-999.99,0.00031917,2]
[321514263,1712278238024,-156.25,0.00032877,2]
[321514264,1712278238034,-156.25,0.00032877,2]
[321514265,1712278238047,-191.95,0.00032877,2]
[321514266,1712278238056,-156.25,0.00032877,2]
[321514267,1712278238066,-150.0,0.00034548,10]
[321514268,1712278238076,-10000.0,0.00035,3]
[321514269,1712278238087,-568.74,0.0003517,2]
[321514270,1712278238097,-200.0,0.00035616,2]
[321514271,1712278238107,-155.0,0.00036716,4]
[321514272,1712278238117,-250.0,0.00036996,115]
[321514273,1712278238127,-1752.69180594,0.00037052,2]
[321514274,1712278238139,-8066.22819406,0.00037052,2]
[321514275,1712278238149,-1092.78,0.00037137,2]
[321514276,1712278238159,-200.0,0.00037145,2]
[321514277,1712278238169,-2946.72,0.00037186,2]
[321514278,1712278238179,-1303.0,0.00037191,2]
[321514279,1712278238189,-500.0,0.00037332,2]
[321514281,1712278238199,-173.27,0.0003736,2]
[321514283,1712278238209,-168.41501804,0.00037394,4]
[321514285,1712278238218,-568.74,0.00037434,2]
[321514287,1712278238227,-1000.0,0.00037491,2]
[321514289,1712278238237,-16105.33,0.00037561,2]
[321514291,1712278238246,-340.82,0.00037773,2]
[321514293,1712278238255,-150.0,0.000378,15]
[321514295,1712278238266,-1283.38,0.00037811,2]
[321514297,1712278238275,-173.27,0.00037846,2]
[321514299,1712278238285,-18000.0,0.00038,3]
[321514301,1712278238295,-2394.51,0.00038027,15]
[321514304,1712278238304,-173.27,0.00038333,2]
[321514307,1712278238314,-2000.0,0.00038356,2]
[321514310,1712278238323,-152.0708605,0.00038356,30]
[321514313,1712278238335,-324.232551,0.00038535,4]
[321514316,1712278238344,-152.0708605,0.00038603,30]
[321514318,1712278238353,-209.2941,0.000388,2]
[321514320,1712278238362,-433.3333,0.000388,2]
[321514322,1712278238371,-2294.7491,0.000388,2]
[321514324,1712278238380,-255.2801,0.000388,2]
[321514326,1712278238389,-173.27,0.0003882,2]
[321514328,1712278238399,-1050.0,0.00038844,2]
[321514330,1712278238408,-165.0,0.00038844,2]
[321514331,1712278238417,-152.527,0.00038844,2]
[321514333,1712278238425,-150.0,0.00038844,2]
[321514335,1712278238435,-152.0708605,0.00038849,30]
[321514339,1712278238455,-150.0,0.000389,5]
[321514341,1712278238465,-4065.34553289,0.00038903,15]
[321514343,1712278238475,-1000.0,0.00038904,120]
[321514345,1712278238485,-190.08857564,0.00038932,30]
[321514347,1712278238494,-1926.16738428,0.00038945,4]
[321514349,1712278238504,-600.0,0.00039,40]
[321514351,1712278238514,-1065.4798464,0.00039,40]
[321514353,1712278238523,-392.369205,0.00039,13]
[321514355,1712278238533,-1211.0,0.00039099,4]
[321514357,1712278238543,-2927.364979,0.000391,21]
[321514359,1712278238552,-1011.46,0.000391,2]
[321514361,1712278238562,-318.62,0.000391,2]
[321514363,1712278238573,-151.040509,0.00039105,16]
[321514365,1712278238586,-151.040509,0.00039105,15]
[321514367,1712278238596,-152.0708605,0.00039123,30]
[321514369,1712278238607,-151.0,0.00039161,2]
[321514371,1712278238617,-250.49088,0.00039161,2]
[321514373,1712278238627,-805.30673265,0.0003917,2]
[321514375,1712278238637,-183.63,0.00039171,2]
[321514377,1712278238647,-151.040509,0.00039205,16]
[321514379,1712278238657,-151.040509,0.00039305,17]
[321514382,1712278238669,-151.040509,0.00039305,16]
[321514384,1712278238679,-173.27,0.00039306,2]
[321514386,1712278238689,-152.0708605,0.0003937,30]
[321514388,1712278238698,-150.0,0.000394,6]
[321514389,1712278238708,-151.040509,0.00039405,18]
[321514392,1712278238718,-151.040509,0.00039405,17]
[321514394,1712278238728,-190.08857564,0.00039479,30]
[321514396,1712278238738,-151.040509,0.00039505,19]
[321514397,1712278238747,-151.040509,0.00039505,18]
[321514398,1712278238757,-151.040509,0.00039605,20]
[321514399,1712278238767,-157.040509,0.00039605,19]
[321514400,1712278238777,-152.0708605,0.00039616,30]
[321514401,1712278238786,-1000.0,0.00039647,30]
[321514402,1712278238796,-1063.560184,0.00039647,30]
[321514403,1712278238806,-568.74,0.00039698,2]
[321514404,1712278238815,-151.040509,0.00039705,21]
[321514405,1712278238825,-157.040509,0.00039705,20]
[321514406,1712278238837,-576.44403565,0.000398,2]
[321514407,1712278238847,-157.040509,0.00039805,28]
[321514408,1712278238857,-157.040509,0.00039805,22]
[321514409,1712278238867,-157.040509,0.00039805,21]
[321514410,1712278238877,-1001.12449973,0.00039805,2]
[321514411,1712278238887,-302.0,0.00039819,4]
[321514412,1712278238897,-152.0708605,0.00039863,30]
[321514413,1712278238907,-754.2245,0.00039899,2]
[321514414,1712278238917,-1000.0,0.00039899,2]
[321514415,1712278238927,-2500.0,0.00039899,2]
[321514416,1712278238937,-692.74848988,0.00039899,12]
[321514417,1712278238947,-162.05334945,0.00039899,2]
[321514418,1712278238957,-186.52488996,0.00039899,9]
[321514419,1712278238967,-1000.0,0.000399,2]
[321514420,1712278238977,-2441.2477,0.000399,2]
[321514421,1712278238987,-738.2033,0.000399,2]
[321514422,1712278238997,-1440.5879,0.000399,2]
[321514423,1712278239007,-2503.6312,0.000399,120]
[321514424,1712278239016,-7500.0,0.000399,2]
[321514425,1712278239026,-161.52447112,0.000399,13]
[321514426,1712278239036,-10000.0,0.000399,2]
[321514427,1712278239050,-152.76129198,0.000399,6]
[321514428,1712278239060,-186.05846989,0.000399,13]
[321514429,1712278239070,-150.0,0.000399,6]
[321514430,1712278239080,-296.49321521,0.000399,2]
[321514431,1712278239089,-157.15500887,0.000399,2]
[321514432,1712278239099,-151.040509,0.00039905,23]
[321514433,1712278239109,-151.040509,0.00039905,22]
[321514434,1712278239119,-151.040509,0.00039905,29]
[321514435,1712278239129,-1303.0,0.00039931,2]
[321514436,1712278239139,-1569.49662579,0.0003997,2]
[321514437,1712278239149,-453.34,0.0003997,2]
[321514438,1712278239159,-1140433.40130301,0.0003997,2]
[321514439,1712278239245,-161.39,0.00039969,2]
[321514440,1712278239255,-54724.52688425,0.0003997,2]
[321514441,1712278239267,-3794.76342991,0.0003997,2]
[321514442,1712278239278,-3511.37901684,0.0003997,2]
[321514443,1712278239290,-21813.34054927,0.0003997,2]
[321514444,1712278239301,-3001.29474425,0.0003997,2]
[321514445,1712278239313,-3847.35178955,0.0003997,2]
[321514446,1712278239348,-4192.1963289,0.0003997,2]
[321514448,1712278240211,-263.11,0.00037461,2]
[321514449,1712278240221,-161.39,0.00039969,2]
[321514450,1712278240231,-161.39,0.00039969,2]
[321514451,1712278240240,-161.39,0.00039969,2]
[321514452,1712278240249,-82.3696797,0.00039969,2]
[321514453,1712278240261,-79.0203203,0.00039969,2]
[321514454,1712278240270,-257.66475881,0.0003997,2]
[321514455,1712278240305,-406.24944498,0.0003997,2]
[321514467,1712278242659,-547.46957672,0.0003997,2]
[321514475,1712278242785,-2706.66538288,0.0003997,2]
[321514476,1712278242797,-1331.78808933,0.0003997,2]
[321514477,1712278242834,-280.404749,0.0003997,2]
[321514478,1712278243115,-4971.14953719,0.0003997,2]
[321514486,1712278246014,-27257.28125,0.0003997,2]
[321514487,1712278246913,862.71024584,0.00022952,4]
[321514488,1712278264865,668.65543852,0.00022952,4]
[321514489,1712278268058,214.1701,0.00022952,2]
[321514490,1712278276700,7936.27850963,0.00022952,2]
[321514491,1712278280476,8276.22149038,0.00022952,2]
[321514492,1712278329339,287.28645962,0.00022952,2]
[321514493,1712278331649,250.34966278,0.00022952,2]
[321514494,1712278334016,16576.52798671,0.00022952,2]
[321514495,1712278474341,12348.85379738,0.00015,2]
[321514496,1712278480109,208.14093097,0.0001,2]
[321514497,1712278562795,186.53,0.00021409,2]
[321514498,1712278645729,915.78,0.00021805,2]
[321514499,1712278836589,173.03,0.00018888,2]
[321514500,1712278997255,500.0,0.00022928,2]
[321514501,1712278998030,200.0,0.00022928,2]
[321514502,1712279111218,250.0,0.00022896,2]
[321514503,1712279140345,869.99,0.00020713,2]
[321514504,1712279140600,869.99,0.00022976,2]
[321514505,1712279143091,23900.0,0.0002263,2]
[321514506,1712279167772,157.41,0.00022564,10]
[321514507,1712279295839,250.0,0.00022551,2]
[321514508,1712279325462,13130.41,0.00022511,2]
[321514512,1712279335371,340.82,0.00022497,2]
[321514513,1712279342244,394.68,0.00022511,2]
[321514514,1712279352354,200.0,0.00022497,2]
[321514518,1712279360577,16574.72,0.0002246,2]
[321514521,1712279385416,500.0,0.00022498,2]
[321514524,1712279429124,3247.63,0.00022675,2]
[321514543,1712279432371,-233.12932164,0.00023007,2]
[321514544,1712279432381,-4309.13332723,0.00023007,2]
[321514545,1712279432391,-1295.12322629,0.00023008,2]
[321514546,1712279432405,-206.09224907,0.00023008,2]
[321514547,1712279432414,-500.0,0.00023009,2]
[321514548,1712279432425,-300.0,0.00023015,2]
[321514549,1712279432435,-150.0,0.00023015,2]
[321514550,1712279432445,-4042.60148558,0.00023015,2]
[321514551,1712279432454,-517.874,0.00023018,2]
[321514552,1712279432465,-517.874,0.00023018,2]
[321514553,1712279432476,-517.874,0.00023018,2]
[321514555,1712279432486,-517.874,0.00023018,2]
[321514557,1712279432494,-193.06,0.0002307,2]
[321514559,1712279432503,-193.06,0.00023134,2]
[321514561,1712279432512,-2353.89,0.00023134,2]
[321514563,1712279432521,-193.06,0.00023197,2]
[321514565,1712279432530,-500.0,0.00023257,2]
[321514567,1712279432539,-499.99,0.00023257,2]
[321514569,1712279432548,-193.06,0.0002326,2]
[321514570,1712279432558,-689.9,0.0002326,2]
[321514573,1712279432567,-193.06,0.00023323,2]
[321514575,1712279432576,-193.06,0.00023387,2]
[321514577,1712279432585,-193.06,0.0002345,2]
[321514579,1712279432596,-1199.24032135,0.00023485,2]
[321514582,1712279432608,-381.87327476,0.00023485,2]
[321514584,1712279432620,-1802.21640389,0.00023485,2]
[321514586,1712279432630,-324.232551,0.00023498,2]
[321514588,1712279432640,-255.2801,0.00023509,2]
[321514590,1712279432649,-900.34459007,0.00023509,2]
[321514592,1712279432660,-3239.94999999,0.00023509,2]
[321514596,1712279432684,-398.63808835,0.00023509,2]
[321514597,1712279432704,-561.36310799,0.00023509,2]
[321514598,1712279432733,-7592.3825136,0.00023509,2]
[321514599,1712279432745,-2732.21681668,0.0002351,2]
[321514600,1712279432754,-2162.34965131,0.0002351,2]
[321514601,1712279432763,-193.06,0.00023513,2]
[321514602,1712279432773,-193.06,0.00023576,2]
[321514603,1712279432782,-7800.1869399,0.00023608,2]
[321514604,1712279432791,-110447.02746602,0.00023609,2]
[321514605,1712279432800,-1125.9,0.0002362,2]
[321514606,1712279432810,-193.06,0.0002364,2]
[321514607,1712279432819,-2500.0,0.00023648,2]
[321514608,1712279432829,-2732.2168166,0.00023664,2]
[321514609,1712279432839,-2162.3496513,0.00023664,2]
[321514610,1712279432848,-8292.12843605,0.00023678,2]
[321514611,1712279432857,-193.06,0.00023703,2]
[321514612,1712279432866,-5082.0139644,0.00023748,2]
[321514613,1712279432876,-193.06,0.00023766,2]
[321514614,1712279432885,-2732.2168166,0.00023819,2]
[321514615,1712279432894,-2162.3496513,0.00023819,2]
[321514616,1712279432903,-193.06,0.0002383,2]
[321514617,1712279432912,-193.06,0.00023893,2]
[321514618,1712279432922,-193.06,0.00023956,2]
[321514619,1712279432931,-1394.84727672,0.00023973,2]
[321514620,1712279432943,-1197.56268059,0.00023973,2]
[321514621,1712279432974,-139.80685929,0.00023973,2]
[321514622,1712279432983,-2162.3496513,0.00023973,2]
[321514623,1712279432992,-193.06,0.00024019,2]
[321514624,1712279433001,-1500.0,0.0002408,2]
[321514625,1712279433010,-193.06,0.00024083,2]
[321514626,1712279433020,-2732.2168166,0.00024128,2]
[321514627,1712279433029,-2162.3496513,0.00024128,2]
[321514628,1712279433038,-193.06,0.00024146,2]
[321514629,1712279433047,-193.06,0.00024209,2]
[321514630,1712279433056,-392.51762003,0.0002421,2]
[321514631,1712279433066,-313.13,0.0002421,2]
[321514632,1712279433075,-193.06,0.00024272,2]
[321514633,1712279433084,-2732.2168166,0.00024282,2]
[321514634,1712279433095,-2162.3496513,0.00024282,2]
[321514635,1712279433104,-152.274884,0.0002442,2]
[321514636,1712279433113,-2732.2168166,0.00024437,2]
[321514637,1712279433122,-2162.3496513,0.00024437,2]
[321514638,1712279433131,-2732.2168166,0.00024591,2]
[321514639,1712279433141,-2162.3496513,0.00024591,2]
[321514640,1712279433150,-255.90997332,0.00024658,2]
[321514641,1712279433160,-207.87290769,0.000247,2]
[321514642,1712279433170,-207.87290765,0.00024729,2]
[321514643,1712279433179,-2732.2168166,0.00024746,2]
[321514644,1712279433188,-2162.3496513,0.00024746,2]
[321514645,1712279433198,-207.87290765,0.00024757,2]
[321514646,1712279433207,-207.87290765,0.00024786,2]
[321514647,1712279433216,-163.02,0.0002479,2]
[321514648,1712279433225,-1666.87509738,0.000248,2]
[321514649,1712279433251,-9928.13391927,0.000248,2]
[321514660,1712279437858,-3230.81166568,0.00023006,2]
[321514661,1712279437870,-1152.9032457,0.00023006,2]
[321514662,1712279437881,-7526.28053304,0.00023006,2]
[321514663,1712279437891,-13533.71946696,0.000248,2]
[321514664,1712279437988,-364.0,0.000248,2]
[321514665,1712279438034,-5024.25591251,0.000248,2]
[321514666,1712279438094,-293.094,0.000248,2]
[321514667,1712279438151,-32587.65020388,0.000248,2]
[321514668,1712279438161,-1440.5879,0.000248,2]
[321514669,1712279438170,-207.87290765,0.00024814,2]
[321514670,1712279438180,-207.87290765,0.00024843,2]
[321514671,1712279438189,-207.87290765,0.00024871,2]
[321514672,1712279438198,-331.12996159,0.00024889,2]
[321514673,1712279438208,-262.90696372,0.00024898,2]
[321514674,1712279438217,-1240.33157319,0.00024898,2]
[321514675,1712279438227,-669.94916933,0.00024898,2]
[321514676,1712279438237,-155.0,0.00024898,2]
[321514677,1712279438247,-278.15686245,0.00024898,2]
[321514678,1712279438259,-155.0,0.00024898,2]
[321514679,1712279438269,-2986.23259945,0.00024898,2]
[321514680,1712279438278,-180.56821029,0.00024898,2]
[321514681,1712279438289,-485.70839377,0.00024898,2]
[321514682,1712279438299,-1057.25731765,0.00024898,2]
[321514683,1712279438309,-203.57525372,0.00024898,2]
[321514684,1712279438320,-537.5148274,0.00024898,2]
[321514686,1712279438329,-324.73348101,0.00024898,2]
[321514688,1712279438339,-290.83543371,0.00024898,2]
[321514689,1712279438348,-188.93,0.00024898,2]
[321514690,1712279438358,-2441.2477,0.00024899,2]
[321514691,1712279438368,-30473.8986,0.000249,2]
[321514692,1712279438377,-969.14682667,0.000249,2]
[321514693,1712279438387,-152.76129198,0.000249,2]
[321514694,1712279438400,-558.17540965,0.000249,2]
[321514695,1712279438410,-2732.2168166,0.000249,2]
[321514696,1712279438419,-296.49321521,0.000249,2]
[321514697,1712279438429,-2162.3496513,0.000249,2]
[321514698,1712279438438,-207.87290765,0.000249,2]
[321514699,1712279438448,-7500.0,0.000249,2]
[321514700,1712279438458,-331.12996159,0.000249,2]
[321514701,1712279438467,-471.46502661,0.000249,2]
[321514702,1712279438479,-184.063623,0.0002499,2]
[321514703,1712279438489,-163.02,0.0002499,2]
[321514704,1712279438498,-163.02,0.0002499,2]
[321514705,1712279438507,-163.02,0.0002499,2]
[321514706,1712279438516,-163.02,0.0002499,2]
[321514707,1712279438526,-163.02,0.0002499,2]
[321514708,1712279438535,-6108.08087721,0.00024999,2]
[321514709,1712279438544,-484.8999254,0.00024999,2]
[321514710,1712279438553,-22642414.05462122,0.00025,2]
[321514711,1712279438567,-1696464.49911807,0.00025,2]
[321514712,1712279438576,-2601.01958159,0.00025,2]
[321514713,1712279438586,-177.28547519,0.00025,2]
[321514714,1712279438595,-826.52,0.00025,2]
[321514715,1712279438605,-975.91,0.00025,2]
[321514716,1712279438613,-906.28,0.00025,2]
[321514717,1712279438623,-2636715.3920464,0.00025,2]
[321514718,1712279438633,-3965.02683526,0.0002511,2]
[321514719,1712279438643,-869.99,0.0002524,2]
[321514720,1712279438652,-210.0,0.00025317,2]
[321514721,1712279438661,-3383.33,0.00026225,2]
[321514722,1712279438670,-26842.5275395,0.000263,2]
[321514723,1712279438679,-167.0,0.00026904,2]
[321514724,1712279438689,-28972.12542792,0.00027,2]
[321514725,1712279438698,-250.0,0.00027397,2]
[321514726,1712279438707,-869.99,0.00027504,2]
[321514727,1712279438719,-293.0,0.00027849,2]
[321514728,1712279438728,-3828.40574493,0.00028,10]
[321514729,1712279438737,-1000.0,0.00028349,2]
[321514730,1712279438746,-11157.0,0.00028919,3]
[321514731,1712279438755,-3383.33,0.00028965,2]
[321514732,1712279438764,-560.39224989,0.00029,2]
[321514733,1712279438772,-508.0,0.000295,2]
[321514734,1712279438781,-869.99,0.00029768,2]
[321514735,1712279438791,-265.4890508,0.0002999,2]
[321514736,1712279438800,-3206.28076084,0.0003,2]
[321514737,1712279438809,-1334.24318151,0.0003,4]
[321514738,1712279438819,-699.10676174,0.0003,4]
[321514739,1712279438829,-155.0,0.0003,2]
[321514740,1712279438839,-1268.1214971,0.00030396,28]
[321514741,1712279438850,-269.0,0.00030633,2]
[321514742,1712279438859,-394.68,0.00031515,2]
[321514743,1712279438868,-1000.0,0.00031893,2]
[321514744,1712279438877,-248.97447888,0.00032,7]
[321514745,1712279438886,-869.99,0.00032032,2]
[321514746,1712279438895,-2497.05,0.00032603,2]
[321514747,1712279438908,-910.65,0.00032603,2]
[321514748,1712279438918,-156.25,0.00032877,2]
[321514749,1712279438927,-191.95,0.00032877,2]
[321514750,1712279438936,-156.25,0.00032877,2]
[321514751,1712279438946,-172.81,0.00032991,120]
[321514752,1712279438961,-469.0,0.00033528,5]
[321514753,1712279438970,-869.99,0.00034296,2]
[321514754,1712279438979,-33796.78441007,0.0003499,2]
[321514755,1712279438988,-153.89330329,0.00035,2]
[321514756,1712279438998,-1281.5331215,0.00035,4]
[321514757,1712279439007,-3388.25300867,0.00035,2]
[321514758,1712279439016,-222.34510552,0.00035,2]
[321514759,1712279439026,-222.34510552,0.00035,2]
[321514760,1712279439036,-222.34510552,0.00035,2]
[321514761,1712279439046,-222.34510552,0.00035,2]
[321514762,1712279439056,-222.34510552,0.00035,2]
[321514763,1712279439066,-222.34510552,0.00035,2]
[321514764,1712279439076,-222.34510552,0.00035,2]
[321514765,1712279439085,-222.34510552,0.00035,2]
[321514766,1712279439097,-222.34510552,0.00035,2]
[321514767,1712279439107,-222.34510552,0.00035,2]
[321514768,1712279439117,-222.34510552,0.00035,2]
[321514769,1712279439127,-222.34510552,0.00035,2]
[321514770,1712279439137,-222.34510552,0.00035,2]
[321514771,1712279439147,-222.34510552,0.00035,2]
[321514772,1712279439156,-222.34510552,0.00035,2]
[321514773,1712279439164,-222.34510552,0.00035,2]
[321514774,1712279439174,-222.34510552,0.00035,2]
[321514775,1712279439184,-222.34510552,0.00035,2]
[321514776,1712279439194,-222.34510552,0.00035,2]
[321514777,1712279439204,-222.34510552,0.00035,2]
[321514778,1712279439214,-222.34510552,0.00035,2]
[321514779,1712279439223,-222.34510552,0.00035,2]
[321514780,1712279439233,-222.34510552,0.00035,2]
[321514781,1712279439242,-222.34510552,0.00035,2]
[321514782,1712279439253,-222.34510552,0.00035,2]
[321514783,1712279439263,-222.34510552,0.00035,2]
[321514784,1712279439274,-222.34510552,0.00035,2]
[321514785,1712279439283,-222.34510552,0.00035,2]
[321514786,1712279439293,-222.34510552,0.00035,2]
[321514787,1712279439304,-222.34510552,0.00035,2]
[321514788,1712279439313,-222.34510552,0.00035,2]
[321514789,1712279439322,-222.34510552,0.00035,2]
[321514790,1712279439332,-222.34510552,0.00035,2]
[321514791,1712279439342,-222.34510552,0.00035,2]
[321514792,1712279439352,-222.34510552,0.00035,2]
[321514793,1712279439361,-222.34510552,0.00035,2]
[321514794,1712279439371,-222.34510552,0.00035,2]
[321514795,1712279439380,-222.34510552,0.00035,2]
[321514796,1712279439392,-222.34510552,0.00035,2]
[321514797,1712279439402,-222.34510552,0.00035,2]
[321514798,1712279439412,-222.34510552,0.00035,2]
[321514799,1712279439421,-222.34510552,0.00035,2]
[321514800,1712279439431,-222.34510552,0.00035,2]
[321514801,1712279439442,-222.34510552,0.00035,2]
[321514802,1712279439451,-222.34510552,0.00035,2]